fUST/lending_fUST_20250620
["ID","MTS","AMOUNT","RATE_DAILY","PERIOD"]
[366736114,1750425046272,-460.0,0.00020575,2]
[366736116,1750425046282,-400.89807898,0.00020575,2]
[366736118,1750425046292,-2941.32,0.00020575,2]
[366736120,1750425046303,-460.0,0.00020575,2]
[366736122,1750425046313,-460.0,0.00020575,2]
[366736124,1750425046323,-460.0,0.00020575,2]
[366736126,1750425046332,-460.0,0.00020575,2]
[366736128,1750425046342,-473.28,0.00020575,2]
[366736130,1750425046352,-349.74561577,0.00020575,2]
[366736132,1750425046361,-869.53,0.00020575,2]
[366736135,1750425046372,-460.0,0.00020575,2]
[366736137,1750425046382,-460.0,0.00020575,2]
[366736139,1750425046392,-460.0,0.00020575,2]
[366736140,1750425046401,-460.0,0.00020575,2]
[366736142,1750425046411,-537.03,0.00020575,2]
[366736145,1750425046421,-460.0,0.00020575,2]
[366736146,1750425046430,-2293.21,0.00020575,2]
[366736148,1750425046439,-460.0,0.00020575,2]
[366736150,1750425046449,-460.0,0.00020575,2]
[366736152,1750425046459,-460.0,0.00020575,2]
[366736154,1750425046468,-460.0,0.00020575,2]
[366736156,1750425046478,-1587.95,0.00020575,2]
[366736163,1750425046534,-312.17375379,0.00020575,2]
[366736165,1750425046544,-589.64,0.00020575,2]
[366736167,1750425046553,-460.0,0.00020575,2]
[366736169,1750425046563,-460.0,0.00020575,2]
[366736171,1750425046572,-460.0,0.00020575,2]
[366736173,1750425046582,-460.0,0.00020575,2]
[366736174,1750425046596,-460.0,0.00020575,2]
[366736176,1750425046605,-460.0,0.00020575,2]
[366736178,1750425046615,-460.0,0.00020575,2]
[366736180,1750425046624,-460.0,0.00020575,2]
[366736182,1750425046633,-598.89,0.00020575,2]
[366736184,1750425046643,-460.0,0.00020575,2]
[366736186,1750425046652,-460.0,0.00020575,2]
[366736188,1750425046661,-460.0,0.00020575,2]
[366736190,1750425046671,-754.63,0.00020575,2]
[366736192,1750425046681,-266.8784182,0.00020575,2]
[366736194,1750425046691,-460.0,0.00020575,2]
[366736196,1750425046700,-460.0,0.00020575,2]
[366736198,1750425046710,-460.0,0.00020575,2]
[366736200,1750425046720,-553.57,0.00020575,2]
[366736202,1750425046731,-1503.3,0.00020575,2]
[366736204,1750425046741,-460.0,0.00020575,2]
[366736206,1750425046750,-728.93,0.00020575,2]
[366736208,1750425046759,-460.0,0.00020575,2]
[366736209,1750425046769,-460.0,0.00020575,2]
[366736211,1750425046778,-389.7835536,0.00020575,2]
[366736214,1750425046788,-460.0,0.00020575,2]
[366736216,1750425046798,-542.15,0.00020575,2]
[366736217,1750425046808,-500.0,0.00020575,2]
[366736219,1750425046822,-505.35,0.00020575,2]
[366736221,1750425046831,-415.7135907,0.00020575,2]
[366736223,1750425046841,-460.0,0.00020575,2]
[366736225,1750425046850,-460.0,0.00020575,2]
[366736227,1750425046859,-1332.33,0.00020575,2]
[366736229,1750425046868,-460.0,0.00020575,2]
[366736231,1750425046878,-460.0,0.00020575,2]
[366736233,1750425046888,-1107.77,0.00020575,2]
[366736235,1750425046898,-460.0,0.00020575,2]
[366736237,1750425046907,-460.0,0.00020576,2]
[366736239,1750425046916,-403.87122491,0.00020576,2]
[366736241,1750425046926,-383.08739963,0.00020576,2]
[366736243,1750425046935,-460.0,0.00020576,2]
[366736245,1750425046945,-507.92051079,0.00020576,2]
[366736247,1750425046957,-460.0,0.00020576,2]
[366736249,1750425046966,-413.78383908,0.00020576,2]
[366736251,1750425046975,-460.0,0.00020576,2]
[366736253,1750425046985,-217.26752474,0.00020576,2]
[366736255,1750425046994,-460.0,0.00020576,2]
[366736257,1750425047004,-460.0,0.00020576,2]
[366736259,1750425047013,-431.7247267,0.00020576,2]
[366736261,1750425047023,-460.0,0.00020576,2]
[366736263,1750425047031,-460.0,0.00020576,2]
[366736265,1750425047042,-3299.78,0.00020576,2]
[366736267,1750425047051,-533.7,0.00020576,2]
[366736269,1750425047060,-1123.1,0.00020576,2]
[366736271,1750425047071,-460.0,0.00020576,2]
[366736272,1750425047080,-1215.91,0.00020576,2]
[366736275,1750425047090,-342.08166717,0.00020576,2]
[366736276,1750425047100,-460.0,0.00020576,2]
[366736278,1750425047109,-460.0,0.00020576,2]
[366736280,1750425047119,-1100.0,0.00020576,2]
[366736282,1750425047129,-460.0,0.00020576,2]
[366736284,1750425047139,-460.0,0.00020577,2]
[366736286,1750425047148,-460.0,0.00020577,2]
[366736289,1750425047159,-280.0,0.00020577,2]
[366736290,1750425047168,-460.0,0.00020577,2]
[366736292,1750425047178,-400.0,0.00020577,2]
[366736294,1750425047188,-460.0,0.00020577,2]
[366736296,1750425047197,-430.0,0.00020577,2]
[366736298,1750425047207,-460.0,0.00020577,2]
[366736300,1750425047217,-460.0,0.00020577,2]
[366736302,1750425047226,-460.0,0.00020577,2]
[366736304,1750425047235,-460.0,0.00020577,2]
[366736306,1750425047244,-460.0,0.00020577,2]
[366736308,1750425047254,-440.0,0.00020577,2]
[366736310,1750425047263,-460.0,0.00020577,2]
[366736312,1750425047273,-460.0,0.00020577,2]
[366736314,1750425047282,-460.0,0.00020577,2]
[366736316,1750425047292,-469.0698191,0.00020577,2]
[366736317,1750425047302,-460.0,0.00020577,2]
[366736320,1750425047312,-1000.0,0.00020577,2]
[366736321,1750425047323,-460.0,0.00020577,2]
[366736323,1750425047332,-468.07971234,0.00020577,2]
[366736325,1750425047342,-460.0,0.00020577,2]
[366736327,1750425047353,-460.0,0.00020577,2]
[366736329,1750425047363,-370.0,0.00020577,2]
[366736331,1750425047372,-460.0,0.00020577,2]
[366736333,1750425047382,-433.70504273,0.00020577,2]
[366736335,1750425047392,-375.02512916,0.00020577,2]
[366736337,1750425047404,-460.0,0.00020577,2]
[366736339,1750425047414,-400.0,0.00020577,2]
[366736341,1750425047424,-460.0,0.00020577,2]
[366736343,1750425047434,-460.0,0.00020577,2]
[366736345,1750425047445,-460.0,0.00020577,2]
[366736347,1750425047455,-460.0,0.00020577,2]
[366736349,1750425047465,-323.7558837,0.00020577,2]
[366736351,1750425047476,-460.0,0.00020577,2]
[366736353,1750425047486,-460.0,0.00020577,2]
[366736355,1750425047496,-430.0,0.00020577,2]
[366736357,1750425047507,-189.354735,0.00020577,2]
[366736359,1750425047516,-189.354735,0.00020577,2]
[366736361,1750425047526,-257.168339,0.00020577,2]
[366736363,1750425047536,-228.256626,0.00020577,2]
[366736365,1750425047546,-460.0,0.00020577,2]
[366736367,1750425047557,-460.0,0.00020577,2]
[366736369,1750425047568,-151.0,0.00020577,2]
[366736371,1750425047578,-151.0,0.00020577,2]
[366736373,1750425047590,-151.0,0.00020577,2]
[366736375,1750425047601,-460.0,0.00020577,2]
[366736376,1750425047611,-151.0,0.00020577,2]
[366736378,1750425047620,-399.07593737,0.00020577,2]
[366736380,1750425047631,-575.37,0.00020577,2]
[366736382,1750425047642,-460.0,0.00020577,2]
[366736384,1750425047651,-460.0,0.00020577,2]
[366736386,1750425047661,-460.0,0.00020577,2]
[366736388,1750425047671,-460.0,0.00020577,2]
[366736390,1750425047681,-460.0,0.00020577,2]
[366736392,1750425047692,-460.0,0.00020577,2]
[366736394,1750425047703,-460.0,0.00020577,2]
[366736396,1750425047713,-460.0,0.00020577,2]
[366736398,1750425047723,-460.0,0.00020577,2]
[366736400,1750425047732,-460.0,0.00020577,2]
[366736402,1750425047742,-460.0,0.00020577,2]
[366736404,1750425047753,-460.0,0.00020577,2]
[366736406,1750425047763,-175.27918428,0.00020577,2]
[366736408,1750425047773,-460.0,0.00020577,2]
[366736410,1750425047783,-460.0,0.00020577,2]
[366736412,1750425047793,-460.0,0.00020577,2]
[366736413,1750425047803,-410.0,0.00020577,2]
[366736415,1750425047814,-460.0,0.00020577,2]
[366736417,1750425047824,-460.0,0.00020577,2]
[366736419,1750425047834,-713.94,0.00020577,2]
[366736421,1750425047844,-460.0,0.00020577,2]
[366736423,1750425047854,-460.0,0.00020577,2]
[366736425,1750425047863,-422.43429731,0.00020577,2]
[366736427,1750425047873,-460.0,0.00020577,2]
[366736429,1750425047884,-460.0,0.00020577,2]
[366736431,1750425047894,-460.0,0.00020577,2]
[366736433,1750425047904,-460.0,0.00020577,2]
[366736435,1750425047914,-460.0,0.00020577,2]
[366736437,1750425047924,-460.0,0.00020577,2]
[366736439,1750425047935,-460.0,0.00020577,2]
[366736441,1750425047946,-460.0,0.00020577,2]
[366736443,1750425047956,-460.0,0.00020577,2]
[366736445,1750425047967,-460.0,0.00020577,2]
[366736447,1750425047977,-338.716032,0.00020577,2]
[366736449,1750425047987,-338.716032,0.00020577,2]
[366736451,1750425047997,-338.716032,0.00020577,2]
[366736453,1750425048007,-338.716032,0.00020577,2]
[366736455,1750425048016,-460.0,0.00020577,2]
[366736457,1750425048026,-460.0,0.00020577,2]
[366736459,1750425048036,-151.0,0.00020577,2]
[366736461,1750425048046,-151.0,0.00020577,2]
[366736463,1750425048055,-460.0,0.00020577,2]
[366736465,1750425048066,-460.0,0.00020577,2]
[366736467,1750425048076,-197.807906,0.00020577,2]
[366736469,1750425048086,-408.2402574,0.00020577,2]
[366736471,1750425048096,-460.0,0.00020577,2]
[366736473,1750425048106,-460.0,0.00020577,2]
[366736475,1750425048116,-579.1568709,0.00020577,2]
[366736477,1750425048127,-460.0,0.00020577,2]
[366736478,1750425048137,-189.354735,0.00020578,2]
[366736480,1750425048147,-189.354735,0.00020578,2]
[366736482,1750425048157,-228.256626,0.00020578,2]
[366736484,1750425048167,-151.0,0.00020578,2]
[366736486,1750425048178,-151.0,0.00020579,2]
[366736488,1750425048188,-460.0,0.00020579,2]
[366736490,1750425048198,-151.0,0.00020579,2]
[366736492,1750425048208,-460.0,0.00020579,2]
[366736494,1750425048218,-460.0,0.00020579,2]
[366736496,1750425048228,-431.83971641,0.00020579,2]
[366736498,1750425048238,-189.354735,0.00020579,2]
[366736500,1750425048249,-189.354735,0.00020579,2]
[366736502,1750425048258,-460.0,0.00020579,2]
[366736503,1750425048268,-565.03417453,0.00020579,2]
[366736505,1750425048278,-460.0,0.00020579,2]
[366736507,1750425048288,-460.0,0.00020579,2]
[366736509,1750425048299,-460.0,0.00020579,2]
[366736511,1750425048309,-460.0,0.00020579,2]
[366736513,1750425048320,-460.0,0.00020579,2]
[366736515,1750425048329,-400.0,0.00020579,2]
[366736517,1750425048339,-461.21340266,0.00020579,2]
[366736519,1750425048349,-371.70334469,0.00020579,2]
[366736521,1750425048359,-460.0,0.00020579,2]
[366736523,1750425048369,-320.0,0.00020579,2]
[366736525,1750425048379,-588.85120388,0.00020579,2]
[366736527,1750425048389,-460.0,0.00020579,2]
[366736529,1750425048399,-460.0,0.00020579,2]
[366736531,1750425048409,-460.0,0.00020579,2]
[366736532,1750425048419,-460.0,0.00020579,2]
[366736534,1750425048429,-460.0,0.00020579,2]
[366736536,1750425048439,-371.04285288,0.00020579,2]
[366736538,1750425048449,-460.0,0.00020579,2]
[366736540,1750425048459,-353.12393029,0.00020579,2]
[366736542,1750425048469,-460.0,0.00020579,2]
[366736544,1750425048479,-461.95810043,0.00020579,2]
[366736546,1750425048489,-442.375809,0.00020579,2]
[366736548,1750425048499,-460.0,0.00020579,2]
[366736550,1750425048509,-532.97258503,0.00020579,2]
[366736552,1750425048519,-460.0,0.00020579,2]
[366736554,1750425048530,-460.0,0.00020579,2]
[366736556,1750425048541,-369.08333962,0.00020579,2]
[366736558,1750425048552,-339.18629338,0.00020579,2]
[366736560,1750425048562,-151.0,0.00020579,2]
[366736562,1750425048572,-460.0,0.00020579,2]
[366736563,1750425048582,-414.25997631,0.00020579,2]
[366736565,1750425048592,-460.0,0.00020579,2]
[366736567,1750425048606,-460.0,0.00020579,2]
[366736569,1750425048616,-460.0,0.00020579,2]
[366736571,1750425048626,-460.0,0.00020579,2]
[366736573,1750425048636,-460.0,0.00020579,2]
[366736575,1750425048647,-460.0,0.00020579,2]
[366736577,1750425048657,-460.0,0.00020579,2]
[366736579,1750425048667,-443.07390189,0.00020579,2]
[366736581,1750425048677,-460.0,0.00020579,2]
[366736583,1750425048691,-460.0,0.00020579,2]
[366736585,1750425048701,-228.256626,0.00020579,2]
[366736587,1750425048712,-460.0,0.00020579,2]
[366736588,1750425048722,-460.0,0.00020579,2]
[366736590,1750425048733,-460.0,0.00020579,2]
[366736592,1750425048744,-430.0,0.00020579,2]
[366736594,1750425048754,-460.0,0.00020579,2]
[366736596,1750425048764,-460.0,0.00020579,2]
[366736598,1750425048775,-151.0,0.00020579,2]
[366736600,1750425048785,-460.0,0.00020579,2]
[366736602,1750425048795,-460.0,0.00020579,2]
[366736604,1750425048805,-463.54242438,0.00020579,2]
[366736606,1750425048816,-460.0,0.00020579,2]
[366736608,1750425048827,-460.0,0.00020579,2]
[366736610,1750425048838,-460.0,0.00020579,2]
[366736612,1750425048848,-151.0,0.00020579,2]
[366736614,1750425048859,-460.0,0.00020579,2]
[366736616,1750425048869,-532.2744019,0.00020579,2]
[366736618,1750425048880,-460.0,0.00020579,2]
[366736620,1750425048890,-460.0,0.00020579,2]
[366736621,1750425048901,-460.0,0.00020579,2]
[366736623,1750425048911,-430.93983685,0.00020579,2]
[366736625,1750425048921,-460.0,0.00020579,2]
[366736627,1750425048930,-460.0,0.00020579,2]
[366736629,1750425048941,-338.716032,0.00020579,2]
[366736631,1750425048951,-338.716032,0.00020579,2]
[366736633,1750425048961,-151.0,0.00020579,2]
[366736635,1750425048971,-151.0,0.0002058,2]
[366736637,1750425048980,-154.166799,0.0002058,2]
[366736639,1750425048990,-423.52968715,0.0002058,2]
[366736641,1750425049000,-545.20188219,0.0002058,2]
[366736643,1750425049010,-460.0,0.0002058,2]
[366736645,1750425049020,-460.0,0.0002058,2]
[366736646,1750425049030,-461.85315348,0.0002058,2]
[366736648,1750425049040,-460.0,0.0002058,2]
[366736650,1750425049050,-592.24507458,0.0002058,2]
[366736652,1750425049060,-460.0,0.0002058,2]
[366736654,1750425049072,-460.0,0.0002058,2]
[366736656,1750425049082,-189.354735,0.0002058,2]
[366736658,1750425049092,-189.354735,0.0002058,2]
[366736660,1750425049102,-212.070544,0.0002058,2]
[366736662,1750425049113,-228.256626,0.0002058,2]
[366736664,1750425049123,-216.207688,0.0002058,2]
[366736666,1750425049134,-151.0,0.0002058,2]
[366736668,1750425049144,-338.716032,0.0002058,2]
[366736670,1750425049154,-338.716032,0.0002058,2]
[366736672,1750425049165,-151.0,0.0002058,2]
[366736674,1750425049175,-151.0,0.00020583,2]
[366736676,1750425049185,-164.0,0.00020583,2]
[366736677,1750425049195,-151.0,0.00020583,2]
[366736679,1750425049205,-189.354735,0.00020583,2]
[366736681,1750425049216,-189.354735,0.00020583,2]
[366736683,1750425049226,-212.070544,0.00020583,2]
[366736685,1750425049236,-212.070544,0.00020583,2]
[366736687,1750425049247,-151.0,0.00020583,2]
[366736689,1750425049257,-228.256626,0.00020583,2]
[366736691,1750425049267,-205.894,0.00020593,2]
[366736693,1750425049277,-234.408106,0.00020606,2]
[366736695,1750425049288,-234.408106,0.00020606,2]
[366736697,1750425049298,-1001.352738,0.00020611,4]
[366736699,1750425049308,-500.0,0.00020844,2]
[366736701,1750425049319,-460.0,0.00020847,2]
[366736703,1750425049330,-505.4488485,0.00020847,2]
[366736705,1750425049340,-383.51149175,0.00020847,2]
[366736707,1750425049351,-460.0,0.00020847,2]
[366736708,1750425049361,-460.0,0.00020847,2]
[366736710,1750425049371,-460.0,0.00020847,2]
[366736712,1750425049382,-460.0,0.00020847,2]
[366736714,1750425049392,-460.0,0.00020847,2]
[366736716,1750425049403,-460.0,0.00020847,2]
[366736718,1750425049413,-460.0,0.00020847,2]
[366736720,1750425049425,-1123.25,0.00020847,2]
[366736722,1750425049436,-1507.47,0.00020847,2]
[366736724,1750425049447,-460.0,0.00020847,2]
[366736726,1750425049458,-460.0,0.00020847,2]
[366736728,1750425049469,-420.88571535,0.00020847,2]
[366736730,1750425049480,-460.0,0.00020847,2]
[366736732,1750425049490,-460.0,0.00020847,2]
[366736734,1750425049502,-2173.62,0.00020847,2]
[366736736,1750425049514,-2896.44,0.00020847,2]
[366736738,1750425049525,-657.81,0.00020847,2]
[366736740,1750425049536,-474.57,0.00020847,2]
[366736742,1750425049561,-460.0,0.00020847,2]
[366736743,1750425049572,-460.0,0.00020847,2]
[366736745,1750425049582,-460.0,0.00020847,2]
[366736747,1750425049593,-460.0,0.00020847,2]
[366736749,1750425049604,-460.0,0.00020847,2]
[366736752,1750425049616,-386.60299656,0.00020847,2]
[366736764,1750425049790,-460.0,0.00020847,2]
[366736765,1750425049803,-460.0,0.00020848,2]
[366736766,1750425049813,-460.0,0.00020848,2]
[366736767,1750425049823,-227.1556954,0.00020848,2]
[366736768,1750425049833,-460.0,0.00020848,2]
[366736769,1750425049843,-460.0,0.00020848,2]
[366736770,1750425049854,-2410.57,0.00020848,2]
[366736771,1750425049865,-460.0,0.00020848,2]
[366736772,1750425049875,-3080.98,0.00020848,2]
[366736773,1750425049885,-492.92,0.00020848,2]
[366736774,1750425049895,-848.94,0.00020848,2]
[366736775,1750425049905,-1447.9,0.00020848,2]
[366736776,1750425049916,-460.0,0.00020848,2]
[366736777,1750425049927,-1397.11,0.00020848,2]
[366736778,1750425049941,-460.0,0.00020848,2]
[366736779,1750425049951,-460.0,0.00020848,2]
[366736780,1750425049961,-430.0,0.00020848,2]
[366736781,1750425049971,-460.0,0.00020848,2]
[366736782,1750425049980,-4946.39,0.00020848,2]
[366736783,1750425049990,-460.0,0.00020848,2]
[366736785,1750425049999,-460.0,0.00020848,2]
[366736786,1750425050009,-700.82,0.00020848,2]
[366736788,1750425050020,-460.0,0.00020848,2]
[366736791,1750425050030,-587.34,0.00020848,2]
[366736794,1750425050054,-440.0,0.00020848,2]
[366736796,1750425050064,-438.10238954,0.00020848,2]
[366736798,1750425050074,-460.0,0.00020848,2]
[366736800,1750425050085,-460.0,0.00020848,2]
[366736802,1750425050096,-862.74,0.00020848,2]
[366736804,1750425050106,-460.0,0.00020848,2]
[366736806,1750425050116,-460.0,0.00020848,2]
[366736808,1750425050126,-460.0,0.00020848,2]
[366736810,1750425050137,-460.0,0.00020848,2]
[366736812,1750425050147,-674.63,0.00020848,2]
[366736814,1750425050157,-625.31,0.00020848,2]
[366736816,1750425050168,-460.0,0.00020848,2]
[366736818,1750425050178,-1107.37,0.00020848,2]
[366736820,1750425050188,-466.98698619,0.00020848,2]
[366736822,1750425050198,-506.13,0.00020848,2]
[366736824,1750425050208,-460.0,0.00020848,2]
[366736826,1750425050219,-707.63,0.00020848,2]
[366736829,1750425050230,-460.0,0.00020848,2]
[366736831,1750425050241,-460.0,0.00020848,2]
[366736833,1750425050252,-460.0,0.00020849,2]
[366736835,1750425050263,-460.0,0.00020849,2]
[366736837,1750425050273,-460.0,0.00020849,2]
[366736839,1750425050283,-460.0,0.00020849,2]
[366736841,1750425050293,-460.0,0.00020849,2]
[366736843,1750425050304,-251.95566065,0.00020849,2]
[366736845,1750425050315,-460.0,0.00020849,2]
[366736847,1750425050325,-390.98817973,0.00020849,2]
[366736849,1750425050335,-421.2921488,0.00020849,2]
[366736851,1750425050346,-460.0,0.00020849,2]
[366736853,1750425050356,-460.0,0.00020849,2]
[366736855,1750425050365,-460.0,0.00020849,2]
[366736857,1750425050375,-460.0,0.00020849,2]
[366736859,1750425050386,-380.0,0.00020849,2]
[366736861,1750425050396,-460.0,0.00020849,2]
[366736864,1750425050406,-460.0,0.00020849,2]
[366736866,1750425050416,-460.0,0.00020849,2]
[366736867,1750425050426,-380.0,0.00020849,2]
[366736870,1750425050437,-460.0,0.00020849,2]
[366736872,1750425050447,-460.0,0.00020849,2]
[366736874,1750425050458,-440.0,0.00020849,2]
[366736876,1750425050468,-460.0,0.00020849,2]
[366736878,1750425050479,-460.0,0.00020849,2]
[366736880,1750425050490,-460.0,0.00020849,2]
[366736882,1750425050500,-466.61287722,0.00020849,2]
[366736884,1750425050510,-460.0,0.00020849,2]
[366736886,1750425050519,-321.80143351,0.00020849,2]
[366736888,1750425050529,-460.0,0.00020849,2]
[366736890,1750425050540,-460.0,0.00020849,2]
[366736891,1750425050550,-430.0,0.00020849,2]
[366736894,1750425050560,-460.0,0.00020849,2]
[366736896,1750425050571,-460.0,0.00020849,2]
[366736898,1750425050581,-295.92763111,0.00020849,2]
[366736900,1750425050592,-460.0,0.00020849,2]
[366736902,1750425050604,-430.0,0.00020849,2]
[366736904,1750425050615,-460.0,0.00020849,2]
[366736906,1750425050624,-460.0,0.00020849,2]
[366736908,1750425050634,-365.30392744,0.00020849,2]
[366736910,1750425050645,-460.0,0.00020849,2]
[366736912,1750425050660,-460.0,0.00020849,2]
[366736914,1750425050671,-460.0,0.00020849,2]
[366736916,1750425050683,-460.0,0.00020849,2]
[366736918,1750425050694,-494.38,0.00020849,2]
[366736921,1750425050707,-460.0,0.00020849,2]
[366736922,1750425050717,-460.0,0.00020849,2]
[366736925,1750425050727,-460.0,0.00020849,2]
[366736927,1750425050737,-460.0,0.00020849,2]
[366736929,1750425050747,-425.15510915,0.00020849,2]
[366736931,1750425050757,-537.99519363,0.00020849,2]
[366736933,1750425050769,-460.0,0.00020849,2]
[366736935,1750425050779,-460.0,0.00020849,2]
[366736937,1750425050789,-460.0,0.00020849,2]
[366736939,1750425050799,-385.06880875,0.00020849,2]
[366736941,1750425050809,-460.0,0.00020849,2]
[366736943,1750425050819,-460.0,0.00020849,2]
[366736945,1750425050831,-460.0,0.00020849,2]
[366736947,1750425050840,-308.21714145,0.00020849,2]
[366736949,1750425050850,-460.0,0.00020849,2]
[366736951,1750425050860,-504.37,0.00020849,2]
[366736953,1750425050870,-407.19996169,0.00020849,2]
[366736955,1750425050879,-460.0,0.00020849,2]
[366736957,1750425050889,-460.0,0.00020849,2]
[366736959,1750425050899,-207.9026124,0.00020849,2]
[366736961,1750425050909,-460.0,0.00020849,2]
[366736963,1750425050919,-460.0,0.00020849,2]
[366736965,1750425050929,-460.0,0.00020849,2]
[366736967,1750425050939,-463.93162997,0.00020849,2]
[366736969,1750425050949,-460.0,0.00020849,2]
[366736971,1750425050958,-460.0,0.00020849,2]
[366736973,1750425050968,-460.0,0.00020849,2]
[366736975,1750425050978,-460.0,0.00020849,2]
[366736977,1750425050988,-460.0,0.00020849,2]
[366736979,1750425050999,-460.0,0.00020849,2]
[366736981,1750425051008,-573.44,0.00020849,2]
[366736983,1750425051018,-460.0,0.00020849,2]
[366736985,1750425051028,-414.36142621,0.00020849,2]
[366736987,1750425051038,-460.0,0.00020849,2]
[366736989,1750425051049,-460.0,0.00020849,2]
[366736991,1750425051058,-500.0,0.00020849,2]
[366736993,1750425051068,-460.0,0.00020849,2]
[366736995,1750425051078,-460.0,0.00020849,2]
[366736997,1750425051088,-460.0,0.00020849,2]
[366736999,1750425051098,-460.0,0.00020849,2]
[366737001,1750425051108,-205.85974949,0.00020849,2]
[366737003,1750425051118,-460.0,0.00020849,2]
[366737005,1750425051128,-460.0,0.00020849,2]
[366737007,1750425051138,-460.0,0.00020849,2]
[366737009,1750425051148,-460.0,0.00020849,2]
[366737011,1750425051158,-460.0,0.00020849,2]
[366737013,1750425051168,-1254.58,0.00020849,2]
[366737015,1750425051178,-608.57,0.00020849,2]
[366737017,1750425051188,-460.0,0.00020849,2]
[366737019,1750425051198,-460.0,0.00020849,2]
[366737021,1750425051208,-460.0,0.00020849,2]
[366737023,1750425051218,-460.0,0.00020849,2]
[366737026,1750425051228,-460.0,0.00020849,2]
[366737028,1750425051238,-460.0,0.00020849,2]
[366737030,1750425051248,-460.0,0.00020849,2]
[366737032,1750425051259,-435.91555211,0.00020849,2]
[366737034,1750425051271,-460.0,0.00020849,2]
[366737036,1750425051281,-460.0,0.00020849,2]
[366737038,1750425051291,-460.0,0.00020849,2]
[366737040,1750425051301,-460.0,0.00020849,2]
[366737042,1750425051311,-485.71,0.00020849,2]
[366737044,1750425051322,-549.69,0.00020849,2]
[366737046,1750425051332,-343.36540105,0.00020849,2]
[366737048,1750425051342,-2941.32,0.00020849,2]
[366737050,1750425051352,-528.59698432,0.00020849,2]
[366737052,1750425051363,-460.0,0.00020849,2]
[366737054,1750425051373,-389.98750616,0.00020849,2]
[366737056,1750425051383,-460.0,0.00020849,2]
[366737058,1750425051393,-473.28,0.00020849,2]
[366737060,1750425051403,-869.53,0.00020849,2]
[366737062,1750425051412,-460.0,0.00020849,2]
[366737064,1750425051423,-460.0,0.00020849,2]
[366737066,1750425051434,-460.0,0.00020849,2]
[366737069,1750425051444,-464.68317913,0.00020849,2]
[366737071,1750425051455,-537.03,0.00020849,2]
[366737072,1750425051466,-431.56909774,0.00020849,2]
[366737074,1750425051476,-2293.21,0.00020849,2]
[366737076,1750425051486,-460.0,0.00020849,2]
[366737078,1750425051496,-460.0,0.00020849,2]
[366737080,1750425051507,-460.0,0.00020849,2]
[366737083,1750425051517,-460.0,0.00020849,2]
[366737085,1750425051527,-1587.95,0.00020849,2]
[366737087,1750425051537,-589.64,0.00020849,2]
[366737089,1750425051547,-460.0,0.00020849,2]
[366737091,1750425051557,-460.0,0.00020849,2]
[366737093,1750425051567,-460.0,0.00020849,2]
[366737095,1750425051578,-460.0,0.00020849,2]
[366737097,1750425051587,-460.0,0.00020849,2]
[366737099,1750425051596,-290.0,0.00020849,2]